lending/lending_fUSD_20260119
["ID","MTS","AMOUNT","RATE_DAILY","PERIOD"]
[402728267,1768849834647,-2000.0,0.00018,2]
[402728268,1768849834657,-2000.0,0.00018,2]
[402728269,1768849834667,-2000.0,0.00018,2]
[402728270,1768849834676,-2000.0,0.00018,2]
[402728271,1768849834685,-734118.65437044,0.00018,2]
[402728272,1768849834788,-285.18479746,0.00018,2]
[402728273,1768849834800,-257.8752,0.00018,2]
[402728293,1768849838806,-566.0,0.0001796,2]
[402728294,1768849838817,-1256919.90394705,0.00018,2]
[402728295,1768849838891,-12987.04402191,0.00018,2]
[402728296,1768849838904,-16647.68452891,0.00018,2]
[402728297,1768849838916,-7967.72470494,0.00018,2]
[402728298,1768849838929,-10953.09439891,0.00018,2]
[402728301,1768849839851,-3389.19645253,0.00018,2]
[402728302,1768849839863,-3010.12872649,0.00018,2]
[402728303,1768849839877,-21309.06284727,0.00018,2]
[402728304,1768849839925,-919.39818052,0.00018,2]
[402728305,1768849839937,-869.24,0.00018,2]
[402728306,1768849839948,-1736.33370989,0.00018,2]
[402728307,1768849839959,-698.92180254,0.00018,2]
[402728308,1768849839970,-7968.61338269,0.00018,2]
[402728309,1768849839986,-6725.39,0.00018,2]
[402728310,1768849839997,-2404988.52352096,0.00018,2]
[402728311,1768849840007,-1815740.67373519,0.00018,2]
[402728317,1768849842671,-151.0,0.00017717,2]
[402728318,1768849842682,-151.0,0.00017717,2]
[402728320,1768849845753,-6000.2941275,0.0001796,2]
[402728321,1768849845764,-394.245,0.0001796,2]
[402728322,1768849845822,-167.4608725,0.0001796,2]
[402728323,1768849845833,-773.77816378,0.00018,2]
[402728325,1768850439450,178.77,0.00013211,2]
[402728326,1768850754081,14082.39017164,0.000133,2]
[402728346,1768851031694,-211.16229621,0.0001551,2]
[402728347,1768851031704,-1200.0,0.0001551,2]
[402728348,1768851031715,-5144.80400964,0.00015511,2]
[402728349,1768851032065,-373.48,0.00015511,2]
[402728350,1768851032228,-3418.53636266,0.00015511,2]
[402728351,1768851032238,-151.0,0.00015611,2]
[402728352,1768851032247,-151.0,0.00015611,2]
[402728353,1768851032256,-151.0,0.00015611,2]
[402728354,1768851032266,-500.0,0.00015611,2]
[402728355,1768851032275,-500.0,0.00015611,2]
[402728356,1768851032285,-500.0,0.00015611,2]
[402728357,1768851032295,-712.03527822,0.0001569,2]
[402728358,1768851032304,-500.0,0.00015973,2]
[402728359,1768851032313,-500.0,0.00015973,2]
[402728360,1768851032322,-150.99,0.00015973,2]
[402728361,1768851032331,-1011.90195741,0.000162,5]
[402728362,1768851032340,-195.82,0.00016328,2]
[402728363,1768851032349,-500.0,0.00016369,2]
[402728364,1768851032359,-1258.0,0.00016419,2]
[402728365,1768851032369,-294.64074645,0.00016426,2]
[402728366,1768851032490,-705.35925355,0.00016426,2]
[402728367,1768851032502,-1500.0,0.00016519,2]
[402728368,1768851032512,-1000.0,0.00016521,2]
[402728369,1768851032522,-1000.0,0.00016521,2]
[402728370,1768851032531,-265.0,0.00016538,2]
[402728371,1768851032542,-500.0,0.00016548,2]
[402728372,1768851032553,-1429.64074645,0.00016596,2]
[402728377,1768851037729,-500.0,0.00015616,2]
[402728378,1768851037739,-320.28935668,0.00015616,2]
[402728379,1768851037748,-500.0,0.00015616,2]
[402728380,1768851037759,-500.0,0.00015616,2]
[402728381,1768851037768,-500.0,0.00015616,2]
[402728382,1768851037778,-500.0,0.00015616,2]
[402728384,1768851038140,-500.0,0.00015616,2]
[402728385,1768851038149,-500.0,0.00015616,2]
[402728386,1768851038159,-500.0,0.00015616,2]
[402728387,1768851038169,-500.0,0.00015616,2]
[402728388,1768851038178,-500.0,0.00015616,2]
[402728389,1768851038190,-3580.43925355,0.00016596,2]
[402728390,1768851038200,-2188.77,0.0001662,2]
[402728391,1768851038209,-2485.84,0.00016716,2]
[402728392,1768851038218,-3350.39,0.00016778,2]
[402728393,1768851038228,-150.0,0.00016824,2]
[402728394,1768851038238,-250.0,0.00017,2]
[402728395,1768851038248,-19782.22610136,0.00017,2]
[402728396,1768851038258,-164.78,0.00017016,2]
[402728397,1768851038267,-8018.49389508,0.00017035,2]
[402728398,1768851038277,-500.0,0.00017082,7]
[402728399,1768851038286,-2300.0,0.00017082,7]
[402728400,1768851038296,-200.0,0.00017098,2]
[402728401,1768851038305,-4444.0,0.00017099,2]
[402728402,1768851038315,-514.84070869,0.00017099,2]
[402728403,1768851038325,-195.82,0.00017235,2]
[402728404,1768851038334,-150.0,0.00017464,2]
[402728405,1768851038344,-150.0,0.00017464,2]
[402728406,1768851038354,-150.0,0.00017464,2]
[402728407,1768851038363,-150.0,0.00017464,2]
[402728408,1768851038373,-150.0,0.00017464,2]
[402728409,1768851038382,-150.0,0.00017479,2]
[402728410,1768851038391,-150.0,0.00017479,2]
[402728411,1768851038400,-150.0,0.00017479,2]
[402728412,1768851038410,-302.94097839,0.000175,3]
[402728413,1768851038420,-150.0,0.00017519,2]
[402728414,1768851038429,-150.0,0.00017519,2]
[402728415,1768851038439,-150.0,0.00017519,2]
[402728416,1768851038448,-150.0,0.00017519,2]
[402728417,1768851038458,-150.0,0.00017519,2]
[402728418,1768851038468,-1000.0,0.00017549,2]
[402728419,1768851038477,-236.0,0.0001757,2]
[402728420,1768851038487,-200.0,0.00017574,2]
[402728421,1768851038496,-200.0,0.00017574,2]
[402728422,1768851038506,-200.0,0.00017574,2]
[402728423,1768851038515,-200.0,0.00017574,2]
[402728424,1768851038524,-200.0,0.00017574,2]
[402728425,1768851038533,-168.0,0.00017612,2]
[402728426,1768851038541,-150.0,0.00017626,2]
[402728427,1768851038551,-602.35071863,0.0001764,2]
[402728428,1768851038560,-533.88981491,0.00017647,2]
[402728429,1768851038569,-690.75,0.00017695,2]
[402728430,1768851038577,-1000.0,0.000177,2]
[402728431,1768851038586,-2299.99999109,0.000178,2]
[402728432,1768851038594,-1000.0,0.000178,2]
[402728433,1768851038602,-1000.0,0.00017846,2]
[402728434,1768851038613,-2001.977,0.00017888,2]
[402728435,1768851038622,-182.112,0.00017888,2]
[402728436,1768851038631,-316.37885154,0.000179,2]
[402728437,1768851038641,-1293.0,0.000179,2]
[402728438,1768851038651,-464.75191565,0.000179,2]
[402728439,1768851038661,-9919.42648838,0.000179,2]
[402728440,1768851038671,-303.36413756,0.000179,2]
[402728441,1768851038680,-500.66472951,0.00017973,2]
[402728442,1768851038690,-500.63546159,0.00017973,2]
[402728443,1768851038699,-500.0,0.00017973,2]
[402728444,1768851038710,-500.0,0.00017973,2]
[402728445,1768851038724,-500.58414783,0.00017973,2]
[402728446,1768851038734,-501.10380402,0.00017973,2]
[402728447,1768851038744,-162.75189574,0.00017973,2]
[402728448,1768851038755,-572.75941177,0.00017973,2]
[402728449,1768851038765,-500.0,0.00017973,2]
[402728450,1768851038774,-501.20758893,0.00017973,2]
[402728451,1768851038785,-500.65767984,0.00017973,2]
[402728452,1768851038795,-238.87520823,0.00017973,2]
[402728453,1768851038810,-501.72422198,0.00017973,2]
[402728454,1768851038820,-159.91806685,0.00017973,2]
[402728455,1768851038829,-157.20652356,0.00017973,2]
[402728456,1768851038839,-160.83675404,0.00017973,2]
[402728457,1768851038848,-500.3495824,0.00017973,2]
[402728458,1768851038858,-501.31181972,0.00017973,2]
[402728459,1768851038867,-500.58490426,0.00017973,2]
[402728460,1768851038877,-501.71835951,0.00017973,2]
[402728461,1768851038886,-500.60696408,0.00017973,2]
[402728462,1768851038896,-500.43397336,0.00017973,2]
[402728463,1768851038905,-500.40956431,0.00017973,2]
[402728464,1768851038914,-500.0,0.00017973,2]
[402728465,1768851038921,-500.39252763,0.00017973,2]
[402728466,1768851038928,-500.72799758,0.00017973,2]
[402728467,1768851038938,-500.5094533,0.00017973,2]
[402728468,1768851038948,-500.0,0.00017973,2]
[402728469,1768851038958,-1244.7,0.00017973,2]
[402728470,1768851038968,-446.08,0.0001799,3]
[402728471,1768851038977,-151.0,0.00017997,2]
[402728472,1768851038986,-300.0,0.00017999,2]
[402728473,1768851038994,-217.78056253,0.00017999,2]
[402728474,1768851039003,-165.57874948,0.00017999,2]
[402728475,1768851039013,-500.0,0.00017999,2]
[402728476,1768851039023,-175.4433098,0.00017999,2]
[402728477,1768851039032,-275.48456502,0.00017999,2]
[402728478,1768851039042,-2779.0,0.00018,2]
[402728479,1768851039052,-1158904.03490867,0.00018,2]
[402728480,1768851039097,-451.7681818,0.00018,2]
[402728482,1768851039793,-151.0,0.00016958,2]
[402728483,1768851039803,-151.0,0.00016958,2]
[402728484,1768851039813,-1353.35490122,0.00018,2]
[402728485,1768851039836,-3322.01082656,0.00018,2]
[402728486,1768851040109,-53152.27602724,0.00018,2]
[402728487,1768851040121,-230909.19416209,0.00018,2]
[402728488,1768851040131,-1239.49,0.00018,7]
[402728489,1768851040141,-3101.3323206,0.00018,2]
[402728490,1768851040151,-1077.4060805,0.00018,2]
[402728491,1768851040161,-151.0,0.00018,2]
[402728492,1768851040171,-151.0,0.00018,2]
[402728493,1768851040181,-265.82949653,0.00018,2]
[402728494,1768851040192,-948.8453557,0.00018,2]
[402728495,1768851040203,-33332.0656577,0.00018,2]
[402728496,1768851040214,-200.0,0.00018,2]
[402728497,1768851040226,-1264.0,0.00018,2]
[402728498,1768851040238,-1264.0,0.00018,2]
[402728499,1768851040249,-1264.0,0.00018,2]
[402728500,1768851040261,-1264.0,0.00018,2]
[402728501,1768851040271,-1264.0,0.00018,2]
[402728502,1768851040280,-1264.0,0.00018,2]
[402728503,1768851040289,-1264.0,0.00018,2]
[402728504,1768851040299,-1264.0,0.00018,2]
[402728505,1768851040308,-200.0,0.00018,2]
[402728506,1768851040317,-1264.0,0.00018,2]
[402728507,1768851040327,-500.0,0.00018,2]
[402728508,1768851040337,-500.0,0.00018,2]
[402728509,1768851040346,-500.0,0.00018,2]
[402728510,1768851040355,-500.0,0.00018,2]
[402728511,1768851040365,-500.0,0.00018,2]
[402728512,1768851040374,-500.0,0.00018,2]
[402728513,1768851040384,-500.0,0.00018,2]
[402728514,1768851040393,-500.0,0.00018,2]
[402728515,1768851040403,-500.0,0.00018,2]
[402728516,1768851040417,-500.0,0.00018,2]
[402728517,1768851040427,-500.0,0.00018,2]
[402728518,1768851040436,-500.0,0.00018,2]
[402728519,1768851040446,-500.0,0.00018,2]
[402728520,1768851040455,-500.0,0.00018,2]
[402728521,1768851040465,-500.0,0.00018,2]
[402728522,1768851040477,-500.0,0.00018,2]
[402728523,1768851040488,-500.0,0.00018,2]
[402728524,1768851040499,-500.0,0.00018,2]
[402728525,1768851040510,-500.0,0.00018,2]
[402728526,1768851040520,-500.0,0.00018,2]
[402728527,1768851040530,-500.0,0.00018,2]
[402728528,1768851040539,-500.0,0.00018,2]
[402728529,1768851040549,-500.0,0.00018,2]
[402728530,1768851040558,-500.0,0.00018,2]
[402728531,1768851040567,-500.0,0.00018,2]
[402728532,1768851040577,-500.0,0.00018,2]
[402728533,1768851040587,-500.0,0.00018,2]
[402728534,1768851040596,-500.0,0.00018,2]
[402728535,1768851040606,-500.0,0.00018,2]
[402728536,1768851040616,-500.0,0.00018,2]
[402728537,1768851040626,-500.0,0.00018,2]
[402728538,1768851040638,-500.0,0.00018,2]
[402728539,1768851040650,-500.0,0.00018,2]
[402728540,1768851040662,-581.0,0.00018,2]
[402728541,1768851040671,-21686.7821108,0.00018,2]
[402728542,1768851040681,-3899009.25207223,0.00018,2]
[402728543,1768851040707,-377.76998618,0.00018,2]
[402728544,1768851040721,-999.53941805,0.00018,2]
[402728552,1768851042783,-15816.5667,0.00018,2]
[402728553,1768851042837,-306.58661608,0.00018,2]
[402728554,1768851042891,-348.03299243,0.00018,2]
[402728555,1768851042903,-2562.40649384,0.00018,2]
[402728594,1768851045898,-1999.958517,0.000179,2]
[402728596,1768851047382,-1274.52021391,0.000179,2]
[402728597,1768851065376,152.0,0.00015247,2]
[402728603,1768851263406,73840.0,0.00027261,120]
[402728605,1768851406950,1101.0,0.00015142,2]
[402728606,1768851411714,1101.0,0.00015142,2]
[402728607,1768851416693,1101.0,0.00015142,2]
[402728608,1768851421756,1101.0,0.00015142,2]
[402728609,1768851426520,1101.0,0.00015142,2]
[402728610,1768851432708,1101.0,0.00015142,2]
[402728611,1768851436093,1101.0,0.00015142,2]
[402728612,1768851440873,1101.0,0.00015142,2]
[402728613,1768851445656,1082.86793404,0.00015142,2]
[402728614,1768851698488,162.0,0.00014997,2]
[402728615,1768851700298,162.0,0.000153,2]
[402728617,1768852064519,10484.29,0.00013618,2]
[402728620,1768852231891,-930.81,0.00015451,2]
[402728621,1768852231903,-170.19,0.00015451,2]
[402728622,1768852231912,-300.0,0.00015518,2]
[402728623,1768852231924,-259.0956586,0.00015519,2]
[402728624,1768852231934,-300.0,0.00015519,2]
[402728625,1768852231944,-1200.0,0.00015531,2]
[402728626,1768852231953,-640.60460682,0.00015532,2]
[402728627,1768852231966,-351.33804209,0.00015532,2]
[402728628,1768852231975,-1802.16290933,0.00015632,2]
[402728629,1768852231985,-300.0,0.00015673,2]
[402728630,1768852231994,-300.0,0.00015673,2]
[402728631,1768852232005,-166.66,0.00015674,2]
[402728632,1768852232014,-991.94264883,0.00015795,2]
[402728633,1768852232027,-500.0,0.00015831,2]
[402728634,1768852232041,-500.0,0.00015831,2]
[402728635,1768852232052,-500.0,0.00015831,2]
[402728636,1768852232061,-500.0,0.00015831,2]
[402728637,1768852232073,-500.0,0.00015831,2]
[402728638,1768852232082,-500.0,0.00015831,2]
[402728639,1768852232092,-298.2245278,0.00015831,2]
[402728640,1768852232103,-500.0,0.00015831,2]
[402728642,1768852232112,-500.0,0.00015831,2]
[402728643,1768852232122,-6909.36,0.00015832,2]
[402728644,1768852232132,-22835.61554414,0.00015914,2]
[402728645,1768852232142,-166.66,0.00016004,2]
[402728646,1768852232152,-991.94264883,0.00016058,2]
[402728647,1768852232162,-1000.0,0.00016174,2]
[402728648,1768852232171,-1101.0,0.00016264,2]
[402728649,1768852232181,-1852.42,0.00016285,2]
[402728651,1768852232191,-503.0,0.00016301,2]
[402728652,1768852232201,-150.0,0.00016312,2]
[402728654,1768852232210,-991.94264883,0.00016321,2]
[402728656,1768852232220,-166.66,0.00016334,2]
[402728659,1768852232229,-200.0,0.00016362,2]
[402728661,1768852232239,-491.75,0.00016362,2]
[402728662,1768852232249,-500.0,0.00016438,2]
[402728663,1768852232259,-381.46219705,0.00016438,2]
[402728664,1768852232268,-2919.10192386,0.00016471,2]
[402728665,1768852232278,-500.0,0.00016521,3]
[402728666,1768852232288,-151.0,0.00016531,2]
[402728667,1768852232298,-151.0,0.00016531,2]
[402728668,1768852232317,-151.0,0.00016536,2]
[402728669,1768852232330,-151.0,0.00016536,2]
[402728670,1768852232341,-991.94264883,0.00016584,2]
[402728671,1768852232352,-164.78,0.00016588,2]
[402728672,1768852232362,-1080.46324283,0.00016634,2]
[402728673,1768852232372,-166.66,0.00016664,2]
[402728674,1768852232383,-166.33,0.00016712,2]
[402728675,1768852232393,-1000.0,0.0001678,2]
[402728676,1768852232404,-2005.51582818,0.00016816,2]
[402728677,1768852232413,-166.67,0.00016838,2]
[402728678,1768852232423,-991.94264883,0.00016848,2]
[402728679,1768852232433,-221.17,0.00016957,2]
[402728680,1768852232443,-11715.14036535,0.00016977,2]
[402728681,1768852232453,-1216.0,0.00016986,2]
[402728682,1768852232463,-166.66,0.00016994,2]
[402728683,1768852232473,-221.17,0.00017002,2]
[402728684,1768852232482,-1000.0,0.00017031,2]
[402728685,1768852232492,-1000.0,0.00017031,2]
[402728686,1768852232502,-500.0,0.00017031,2]
[402728687,1768852232512,-500.0,0.00017031,2]
[402728688,1768852232522,-221.17,0.00017047,2]
[402728689,1768852232531,-1680.0,0.00017074,2]
[402728690,1768852232541,-500.0,0.00017082,7]
[402728691,1768852232550,-2300.0,0.00017082,7]
[402728692,1768852232560,-221.17,0.00017091,2]
[402728693,1768852232569,-907.06,0.00017099,2]
[402728694,1768852232578,-229.35831624,0.00017099,2]
[402728695,1768852232588,-151.0,0.00017099,2]
[402728696,1768852232598,-1000.0,0.00017099,2]
[402728697,1768852232608,-1000.0,0.00017099,2]
[402728698,1768852232617,-1000.0,0.00017099,2]
[402728699,1768852232627,-1000.0,0.00017099,2]
[402728700,1768852232636,-1000.0,0.00017099,2]
[402728701,1768852232646,-1000.0,0.00017099,2]
[402728702,1768852232655,-174.61919141,0.00017099,2]
[402728703,1768852232665,-1000.0,0.00017099,2]
[402728704,1768852232675,-1000.0,0.00017099,2]
[402728705,1768852232684,-1000.0,0.00017099,2]
[402728706,1768852232694,-721.12765535,0.00017099,2]
[402728707,1768852232704,-1000.0,0.00017099,2]
[402728708,1768852232713,-1000.0,0.00017099,2]
[402728709,1768852232723,-1000.0,0.00017099,2]
[402728710,1768852232732,-578.20924308,0.00017099,2]
[402728711,1768852232742,-1000.0,0.00017099,2]
[402728712,1768852232752,-918.17410015,0.00017099,2]
[402728713,1768852232762,-322.6107,0.00017099,2]
[402728714,1768852232771,-209.40437684,0.00017099,2]
[402728715,1768852232781,-514.84070869,0.00017099,2]
[402728716,1768852232790,-4444.0,0.00017099,2]
[402728717,1768852232799,-620.0,0.00017099,2]
[402728718,1768852232809,-991.94264883,0.00017111,2]
[402728719,1768852232819,-1101.0,0.0001712,2]
[402728720,1768852232828,-221.17,0.00017136,2]
[402728721,1768852232838,-300.0,0.00017141,2]
[402728722,1768852232847,-420.0,0.00017141,2]
[402728723,1768852232862,-221.17,0.00017181,2]
[402728724,1768852232871,-935.16,0.00017194,2]
[402728725,1768852232881,-200.0,0.00017204,2]
[402728726,1768852232891,-221.17,0.00017225,2]
[402728727,1768852232901,-221.17,0.0001727,2]
[402728728,1768852232911,-170.0,0.00017272,2]
[402728729,1768852232921,-221.17,0.00017314,2]
[402728730,1768852232931,-166.66,0.00017324,2]
[402728731,1768852232941,-1000.0,0.00017356,7]
[402728732,1768852232952,-221.17,0.00017359,2]
[402728733,1768852232962,-907.06,0.00017373,2]
[402728734,1768852232973,-991.94264883,0.00017374,2]
[402728735,1768852232983,-1000.0,0.00017387,2]
[402728736,1768852232993,-170.0,0.00017401,2]
[402728737,1768852233003,-221.17,0.00017404,2]
[402728738,1768852233013,-221.17,0.00017448,2]
[402728739,1768852233024,-150.0,0.00017464,2]
[402728740,1768852233044,-150.0,0.00017464,2]
[402728741,1768852233058,-150.0,0.00017464,2]
[402728742,1768852233068,-150.0,0.00017464,2]
[402728743,1768852233078,-150.0,0.00017464,2]
[402728744,1768852233089,-150.0,0.00017464,2]
[402728745,1768852233099,-150.0,0.00017464,2]
[402728746,1768852233109,-150.0,0.00017464,2]
[402728747,1768852233119,-221.17,0.00017493,2]
[402728748,1768852233129,-2000.0,0.000175,2]
[402728749,1768852233139,-150.0,0.00017519,2]
[402728750,1768852233149,-150.0,0.00017519,2]
[402728751,1768852233159,-150.0,0.00017519,2]
[402728752,1768852233170,-150.0,0.00017519,2]
[402728753,1768852233181,-150.0,0.00017519,2]
[402728754,1768852233191,-150.0,0.00017519,2]
[402728755,1768852233202,-150.0,0.00017519,2]
[402728756,1768852233212,-221.17,0.00017538,2]
[402728757,1768852233223,-1939.76,0.0001755,2]
[402728758,1768852233235,-150.0,0.00017574,2]
[402728759,1768852233245,-200.0,0.00017574,2]
[402728760,1768852233255,-150.0,0.00017574,2]
[402728761,1768852233265,-150.0,0.00017574,2]
[402728762,1768852233275,-150.0,0.00017574,2]
[402728763,1768852233286,-150.0,0.00017574,2]
[402728764,1768852233296,-200.0,0.00017574,2]
[402728765,1768852233307,-221.17,0.00017582,2]
[402728766,1768852233318,-221.17,0.00017627,2]
[402728767,1768852233328,-150.0,0.00017628,2]
[402728768,1768852233338,-150.0,0.00017628,2]
[402728769,1768852233350,-150.0,0.00017628,2]
[402728770,1768852233360,-150.0,0.00017628,2]
[402728771,1768852233371,-150.0,0.00017628,2]
[402728772,1768852233381,-991.94264883,0.00017637,2]
[402728773,1768852233392,-602.35071863,0.0001764,2]
[402728774,1768852233403,-367.0,0.0001764,2]
[402728775,1768852233414,-907.06,0.00017647,2]
[402728776,1768852233426,-203.6646868,0.00017647,2]
[402728777,1768852233442,-330.22512811,0.00017647,2]
[402728778,1768852233452,-221.17,0.00017671,2]
[402728779,1768852233462,-150.0,0.00017683,2]
[402728780,1768852233473,-150.0,0.00017683,2]
[402728781,1768852233482,-150.0,0.00017683,2]
[402728782,1768852233492,-150.0,0.00017683,2]
[402728783,1768852233502,-150.0,0.00017683,2]
[402728784,1768852233512,-367.0,0.00017688,2]
[402728785,1768852233523,-1293.0,0.000177,2]
[402728786,1768852233533,-221.17,0.00017716,2]
[402728787,1768852233545,-150.0,0.00017726,2]
[402728788,1768852233555,-300.0,0.00017735,2]
[402728789,1768852233565,-250.0,0.00017738,2]
[402728790,1768852233575,-250.0,0.00017738,2]
[402728791,1768852233585,-250.0,0.00017738,2]
[402728792,1768852233595,-250.0,0.00017738,2]
[402728793,1768852233605,-250.0,0.00017738,2]
[402728794,1768852233615,-221.17,0.00017761,2]
[402728795,1768852233626,-446.08,0.0001779,3]
[402728796,1768852233637,-500.0,0.00017799,2]
[402728797,1768852233647,-300.0,0.00017799,2]
[402728798,1768852233658,-11825.00352312,0.000178,2]
[402728799,1768852233671,-13138.20194346,0.000178,2]
[402728800,1768852233681,-221.17,0.00017805,2]
[402728801,1768852233692,-170.0,0.00017816,2]
[402728802,1768852233702,-2001.977,0.00017882,2]
[402728803,1768852233713,-182.112,0.00017882,2]
[402728804,1768852233724,-1000.0,0.000179,2]
[402728805,1768852233734,-353.50605608,0.000179,2]
[402728806,1768852233745,-1000.0,0.000179,2]
[402728807,1768852233755,-8593.07605587,0.000179,2]
[402728808,1768852233765,-991.94264883,0.000179,2]
[402728809,1768852233775,-502.43892147,0.000179,2]
[402728810,1768852233786,-2119.58859905,0.000179,2]
[402728811,1768852233797,-1279.4068199,0.000179,2]
[402728812,1768852233808,-907.06,0.00017921,2]
[402728813,1768852233819,-500.0,0.00017973,2]
[402728814,1768852233830,-500.58414783,0.00017973,2]
[402728815,1768852233841,-572.75941177,0.00017973,2]
[402728816,1768852233851,-162.75189574,0.00017973,2]
[402728817,1768852233861,-500.43397336,0.00017973,2]
[402728818,1768852233871,-238.87520823,0.00017973,2]
[402728819,1768852233881,-500.3495824,0.00017973,2]
[402728820,1768852233891,-501.10380402,0.00017973,2]
[402728821,1768852233901,-500.40956431,0.00017973,2]
[402728822,1768852233911,-500.39252763,0.00017973,2]
[402728823,1768852233922,-500.72799758,0.00017973,2]
[402728824,1768852233932,-500.0,0.00017973,2]
[402728825,1768852233942,-500.66472951,0.00017973,2]
[402728826,1768852233952,-500.63546159,0.00017973,2]
[402728827,1768852233962,-501.20758893,0.00017973,2]
[402728828,1768852233972,-500.65767984,0.00017973,2]
[402728829,1768852233983,-500.0,0.00017973,2]
[402728830,1768852233994,-501.72422198,0.00017973,2]
[402728831,1768852234004,-500.5094533,0.00017973,2]
[402728832,1768852234016,-500.58490426,0.00017973,2]
[402728833,1768852234027,-501.71835951,0.00017973,2]
[402728834,1768852234040,-500.60696408,0.00017973,2]
[402728835,1768852234050,-501.31181972,0.00017973,2]
[402728836,1768852234061,-500.0,0.00017973,2]
[402728837,1768852234071,-500.0,0.00017973,2]
[402728838,1768852234082,-157.20652356,0.00017973,2]
[402728839,1768852234093,-159.91806685,0.00017973,2]
[402728840,1768852234105,-160.83675404,0.00017973,2]
[402728841,1768852234115,-153.95898556,0.0001799,2]
[402728842,1768852234126,-153.95898556,0.0001799,2]
[402728843,1768852234136,-1000.0,0.00017993,2]
[402728844,1768852234147,-151.0,0.00017997,2]
[402728845,1768852234156,-300.0,0.00017999,2]
[402728846,1768852234167,-500.0,0.00017999,2]
[402728847,1768852234176,-155.0,0.00017999,2]
[402728848,1768852234186,-500.0,0.00017999,2]
[402728849,1768852234196,-500.0,0.00017999,2]
[402728850,1768852234207,-500.0,0.00017999,2]
[402728851,1768852234217,-300.0,0.00017999,2]
[402728852,1768852234228,-217.78056253,0.00017999,2]
[402728853,1768852234238,-500.0,0.00017999,2]
[402728854,1768852234248,-175.4433098,0.00017999,2]
[402728855,1768852234258,-165.57874948,0.00017999,2]
[402728856,1768852234268,-275.48456502,0.00017999,2]
[402728857,1768852234278,-2778.0,0.00018,2]
[402728858,1768852234289,-1742.93052295,0.00018,2]
[402728859,1768852234304,-10169.82654501,0.00018,2]
[402728860,1768852234325,-487.79861401,0.00018,2]
[402728861,1768852234354,-999.0,0.00018,2]
[402728862,1768852234366,-1024704.3631896,0.00018,2]
[402728863,1768852237880,-1120.43290127,0.00018,2]
[402728864,1768852237985,-13888.61293171,0.00018,2]
[402728865,1768852238046,-1252165.61459037,0.00018,2]
[402728866,1768852238059,-911.35867628,0.00018,2]
[402728903,1768852239973,-323.311332,0.00018,2]
[402728906,1768852239985,-1632.9638453,0.00018,2]
[402728908,1768852240079,-960.6437248,0.00018,2]
[402728909,1768852240091,-748.19637393,0.00018,2]
[402728910,1768852240133,-11393.00688643,0.00018,2]
[402728911,1768852240144,-1860.73995632,0.00018,2]
[402728912,1768852240186,-44630.52461086,0.00018,2]
[402728913,1768852240297,-71187.63412363,0.00018,2]
[402728914,1768852240349,-774.8112373,0.00018,2]
[402728925,1768852243479,-965.0555406,0.00018,2]
[402728926,1768852243532,-454.50814961,0.00018,2]
[402728927,1768852243544,-3459.4647516,0.00018,2]
[402728928,1768852243742,-19567.0543036,0.0001542,2]
[402728929,1768852243810,-37503.56165342,0.0001542,2]
[402728930,1768852243822,-112275.82504298,0.0001542,2]